[Event "*** SCC Grand Prix: Titled Tuesday Blitz"]
[Site "Chess.com"]
[Date "2020.08.25"]
[Round "4"]
[White "margarita_2703"]
[Black "ChessWarrior3"]
[Result "1-0"]
[WhiteElo "2391"]
[BlackElo "2105"]
[TimeControl "180+1"]
[EndTime "10:41:36 PDT"]
[Termination "margarita_2703 won on time"]

1. Nf3 {[%clk 0:02:58.9]} 1... c5 {[%clk 0:02:55.9]} 2. d4 {[%clk 0:02:58.6]}
2... cxd4 {[%clk 0:02:47.9]} 3. Nxd4 {[%clk 0:02:57.8]} 3... d5 {[%clk
0:02:38.5]} 4. c4 {[%clk 0:02:57.5]} 4... e5 {[%clk 0:02:27.7]} 5. Nf3 {[%clk
0:02:51.1]} 5... d4 {[%clk 0:02:21.2]} 6. e3 {[%clk 0:02:44]} 6... Nc6 {[%clk
0:02:17.4]} 7. exd4 {[%clk 0:02:41.2]} 7... exd4 {[%clk 0:02:14]} 8. Bd3 {[%clk
0:02:40.8]} 8... Bb4+ {[%clk 0:02:06.2]} 9. Nbd2 {[%clk 0:02:37.6]} 9... Qe7+
{[%clk 0:02:01.5]} 10. Qe2 {[%clk 0:02:34.8]} 10... Bg4 {[%clk 0:01:43.2]} 11.
O-O {[%clk 0:02:28.4]} 11... Qxe2 {[%clk 0:01:38.2]} 12. Bxe2 {[%clk 0:02:27.4]}
12... Nf6 {[%clk 0:01:36.9]} 13. h3 {[%clk 0:02:24.6]} 13... Bf5 {[%clk
0:01:34.5]} 14. Re1 {[%clk 0:02:24.3]} 14... O-O {[%clk 0:01:28.9]} 15. a3
{[%clk 0:02:21.7]} 15... Bd6 {[%clk 0:01:26.1]} 16. b4 {[%clk 0:02:18.5]} 16...
d3 {[%clk 0:01:24.9]} 17. Bf1 {[%clk 0:02:15.6]} 17... Rae8 {[%clk 0:01:22.3]}
18. Bb2 {[%clk 0:02:10.9]} 18... Bf4 {[%clk 0:01:18.8]} 19. Rad1 {[%clk
0:01:56.8]} 19... Nd7 {[%clk 0:01:14.1]} 20. Nb3 {[%clk 0:01:50.4]} 20... Nb6
{[%clk 0:01:08.7]} 21. Rxe8 {[%clk 0:01:39.8]} 21... Rxe8 {[%clk 0:01:09.6]} 22.
Bc1 {[%clk 0:01:30.7]} 22... Bxc1 {[%clk 0:01:05.9]} 23. Rxc1 {[%clk 0:01:30.5]}
23... Be4 {[%clk 0:00:59.8]} 24. Nfd2 {[%clk 0:01:27.8]} 24... f5 {[%clk
0:00:52.8]} 25. Nc5 {[%clk 0:01:14.9]} 25... Nd4 {[%clk 0:00:49.5]} 26. f3
{[%clk 0:01:12.3]} 26... Bc6 {[%clk 0:00:48.6]} 27. Bxd3 {[%clk 0:01:04.7]}
27... Na4 {[%clk 0:00:44.1]} 28. Nxa4 {[%clk 0:00:59.7]} 28... Bxa4 {[%clk
0:00:45]} 29. Kf2 {[%clk 0:00:57.4]} 29... Rd8 {[%clk 0:00:41.9]} 30. c5 {[%clk
0:00:54.2]} 30... Nc6 {[%clk 0:00:37.4]} 31. Bc4+ {[%clk 0:00:51.8]} 31... Kf8
{[%clk 0:00:36.5]} 32. Nb1 {[%clk 0:00:50.1]} 32... Ne5 {[%clk 0:00:31.7]} 33.
Be2 {[%clk 0:00:48.3]} 33... f4 {[%clk 0:00:29]} 34. Nc3 {[%clk 0:00:45.9]}
34... Bb3 {[%clk 0:00:27.2]} 35. Ne4 {[%clk 0:00:43.9]} 35... Nd3+ {[%clk
0:00:22.1]} 36. Bxd3 {[%clk 0:00:41.9]} 36... Rxd3 {[%clk 0:00:23]} 37. Rc3
{[%clk 0:00:37.8]} 37... Rxc3 {[%clk 0:00:20.6]} 38. Nxc3 {[%clk 0:00:37.8]}
38... Bc4 {[%clk 0:00:19.2]} 39. Ne4 {[%clk 0:00:33]} 39... h6 {[%clk
0:00:17.2]} 40. Nd6 {[%clk 0:00:32.5]} 40... Bd5 {[%clk 0:00:14]} 41. Ke2 {[%clk
0:00:32.6]} 41... g5 {[%clk 0:00:12.3]} 42. Kd3 {[%clk 0:00:32.6]} 42... Ke7
{[%clk 0:00:10.2]} 43. Kd4 {[%clk 0:00:30.3]} 43... Bc6 {[%clk 0:00:10.7]} 44.
b5 {[%clk 0:00:27.8]} 44... Bd7 {[%clk 0:00:08.4]} 45. a4 {[%clk 0:00:23.8]}
45... h5 {[%clk 0:00:08.6]} 46. Nxb7 {[%clk 0:00:20.5]} 46... Bf5 {[%clk
0:00:06.3]} 47. Ke5 {[%clk 0:00:18]} 47... Bd3 {[%clk 0:00:04.2]} 48. c6 {[%clk
0:00:15.9]} 48... g4 {[%clk 0:00:04.7]} 49. hxg4 {[%clk 0:00:13.5]} 49... hxg4
{[%clk 0:00:02.4]} 50. Nc5 {[%clk 0:00:11.1]} 50... Bf1 {[%clk 0:00:03]} 51. c7
{[%clk 0:00:08.3]} 51... Kf7 {[%clk 0:00:02.8]} 52. c8=Q {[%clk 0:00:07.9]} 1-0

[Event "*** SCC Grand Prix: Titled Tuesday Blitz"]
[Site "Chess.com"]
[Date "2020.08.25"]
[Round "4"]
[White "ChessyInstinct"]
[Black "Misticpikachu"]
[Result "0-1"]
[WhiteElo "2482"]
[BlackElo "2321"]
[TimeControl "180+1"]
[EndTime "10:41:40 PDT"]
[Termination "Misticpikachu won by checkmate"]

1. d4 {[%clk 0:03:00.9]} 1... d5 {[%clk 0:02:59.9]} 2. c4 {[%clk 0:03:01.2]}
2... e6 {[%clk 0:02:59.7]} 3. Nf3 {[%clk 0:03:01.5]} 3... Nf6 {[%clk 0:03:00.3]}
4. g3 {[%clk 0:03:01.9]} 4... Be7 {[%clk 0:03:01.1]} 5. Bg2 {[%clk 0:03:02.3]}
5... O-O {[%clk 0:03:02]} 6. O-O {[%clk 0:03:02.8]} 6... dxc4 {[%clk 0:03:02.6]}
7. Qc2 {[%clk 0:03:03.5]} 7... a6 {[%clk 0:03:03.2]} 8. a4 {[%clk 0:03:03.9]}
8... Bd7 {[%clk 0:03:03.8]} 9. Qxc4 {[%clk 0:03:04.2]} 9... Bc6 {[%clk 0:02:57]}
10. Bf4 {[%clk 0:03:01.4]} 10... Nbd7 {[%clk 0:02:32.2]} 11. Nc3 {[%clk
0:02:59.3]} 11... Nb6 {[%clk 0:02:26.4]} 12. Qd3 {[%clk 0:02:47.5]} 12... Nbd5
{[%clk 0:02:24.8]} 13. Bg5 {[%clk 0:02:02.3]} 13... Nxc3 {[%clk 0:02:20.9]} 14.
bxc3 {[%clk 0:02:03.2]} 14... Be4 {[%clk 0:02:19.6]} 15. Qe3 {[%clk 0:01:46.7]}
15... Qd5 {[%clk 0:02:01.2]} 16. Rac1 {[%clk 0:01:09.9]} 16... b5 {[%clk
0:01:55]} 17. Bxf6 {[%clk 0:00:44.9]} 17... Bxf6 {[%clk 0:01:54.3]} 18. Ne1
{[%clk 0:00:44.9]} 18... Bxg2 {[%clk 0:01:54.1]} 19. Nxg2 {[%clk 0:00:45.8]}
19... bxa4 {[%clk 0:01:49.5]} 20. Nf4 {[%clk 0:00:33]} 20... Qc4 {[%clk
0:01:47.7]} 21. Qd3 {[%clk 0:00:08.3]} 21... Qxd3 {[%clk 0:01:43.2]} 22. Nxd3
{[%clk 0:00:09.2]} 22... Rab8 {[%clk 0:01:43.3]} 23. Ra1 {[%clk 0:00:06.4]}
23... Rb3 {[%clk 0:01:41.8]} 24. Rfc1 {[%clk 0:00:06.3]} 24... a3 {[%clk
0:01:24]} 25. Nc5 {[%clk 0:00:05.9]} 25... Rb2 {[%clk 0:01:24.6]} 26. e3 {[%clk
0:00:04]} 26... a2 {[%clk 0:01:21.5]} 27. Nd3 {[%clk 0:00:02.6]} 27... Rd2
{[%clk 0:01:21.1]} 28. Nb4 {[%clk 0:00:02.8]} 28... a5 {[%clk 0:01:19.2]} 29.
Nxa2 {[%clk 0:00:01.7]} 29... Rb8 {[%clk 0:01:19.2]} 30. Rd1 {[%clk 0:00:02.2]}
30... Re2 {[%clk 0:01:13.8]} 31. Nc1 {[%clk 0:00:02.2]} 31... Rc2 {[%clk
0:01:12.2]} 32. Nd3 {[%clk 0:00:02.7]} 32... Rb5 {[%clk 0:01:07.6]} 33. c4
{[%clk 0:00:01.8]} 33... Rxc4 {[%clk 0:01:07]} 34. Rdc1 {[%clk 0:00:02.4]} 34...
Rxc1+ {[%clk 0:01:03.1]} 35. Rxc1 {[%clk 0:00:03.3]} 35... Bd8 {[%clk 0:01:03]}
36. Nc5 {[%clk 0:00:02.3]} 36... Kf8 {[%clk 0:00:58.2]} 37. Na6 {[%clk
0:00:02.2]} 37... Rb7 {[%clk 0:00:42.3]} 38. Rc5 {[%clk 0:00:02.7]} 38... a4
{[%clk 0:00:35.8]} 39. Ra5 {[%clk 0:00:02.6]} 39... c5 {[%clk 0:00:30.1]} 40.
Rxc5 {[%clk 0:00:02.1]} 40... Ra7 {[%clk 0:00:26.8]} 41. Nb4 {[%clk 0:00:02]}
41... a3 {[%clk 0:00:25.6]} 42. Rc8 {[%clk 0:00:02.1]} 42... Rd7 {[%clk
0:00:21.9]} 43. Nc6 {[%clk 0:00:02.2]} 43... Ke8 {[%clk 0:00:20.9]} 44. Ra8
{[%clk 0:00:02.6]} 44... Rd6 {[%clk 0:00:21.3]} 45. Nxd8 {[%clk 0:00:03.1]}
45... Rxd8 {[%clk 0:00:22.2]} 46. Rxa3 {[%clk 0:00:03.8]} 46... Rc8 {[%clk
0:00:22.6]} 47. Ra7 {[%clk 0:00:04.1]} 47... g6 {[%clk 0:00:23]} 48. Kg2 {[%clk
0:00:04.6]} 48... Kf8 {[%clk 0:00:23.5]} 49. h4 {[%clk 0:00:05.1]} 49... Kg7
{[%clk 0:00:23.8]} 50. Kf3 {[%clk 0:00:05.7]} 50... h5 {[%clk 0:00:24.7]} 51.
Ra5 {[%clk 0:00:06]} 51... Kf6 {[%clk 0:00:25.6]} 52. Ke4 {[%clk 0:00:06]} 52...
Rc2 {[%clk 0:00:25.3]} 53. Kf3 {[%clk 0:00:06.2]} 53... Rc3 {[%clk 0:00:24.1]}
54. Ra2 {[%clk 0:00:06]} 54... Rc1 {[%clk 0:00:23.8]} 55. Rd2 {[%clk 0:00:06.5]}
55... Rc6 {[%clk 0:00:23.3]} 56. e4 {[%clk 0:00:07]} 56... Rc3+ {[%clk
0:00:23.2]} 57. Kf4 {[%clk 0:00:05.6]} 57... Rb3 {[%clk 0:00:17.2]} 58. d5
{[%clk 0:00:04.6]} 58... e5# {[%clk 0:00:17.2]} 0-1

[Event "*** SCC Grand Prix: Titled Tuesday Blitz"]
[Site "Chess.com"]
[Date "2020.08.25"]
[Round "4"]
[White "MariaFominykh"]
[Black "Nf3c5"]
[Result "0-1"]
[WhiteElo "2302"]
[BlackElo "2557"]
[TimeControl "180+1"]
[EndTime "10:41:46 PDT"]
[Termination "Nf3c5 won on time"]

1. d4 {[%clk 0:03:00.9]} 1... Nf6 {[%clk 0:02:59.3]} 2. c4 {[%clk 0:02:58.6]}
2... g6 {[%clk 0:02:59]} 3. Nc3 {[%clk 0:02:57.5]} 3... d5 {[%clk 0:02:59.4]} 4.
cxd5 {[%clk 0:02:56.3]} 4... Nxd5 {[%clk 0:03:00.2]} 5. Bd2 {[%clk 0:02:55.4]}
5... Bg7 {[%clk 0:02:59.4]} 6. e4 {[%clk 0:02:54.3]} 6... Nb6 {[%clk 0:02:59.8]}
7. Be3 {[%clk 0:02:50.3]} 7... O-O {[%clk 0:02:54.2]} 8. Be2 {[%clk 0:02:45.1]}
8... Nc6 {[%clk 0:02:32.6]} 9. Nf3 {[%clk 0:02:37.3]} 9... Bg4 {[%clk
0:02:21.6]} 10. d5 {[%clk 0:02:30.2]} 10... Na5 {[%clk 0:01:47.8]} 11. Bd4
{[%clk 0:02:22.3]} 11... Bxf3 {[%clk 0:01:42.7]} 12. Bxf3 {[%clk 0:02:10.1]}
12... e5 {[%clk 0:01:41.2]} 13. Bc5 {[%clk 0:02:03.3]} 13... Re8 {[%clk
0:01:34.6]} 14. O-O {[%clk 0:02:00.1]} 14... Nac4 {[%clk 0:01:33.7]} 15. b3
{[%clk 0:01:49.1]} 15... Nd6 {[%clk 0:01:32.2]} 16. a4 {[%clk 0:01:42.4]} 16...
Bh6 {[%clk 0:01:24.5]} 17. a5 {[%clk 0:01:36]} 17... Nd7 {[%clk 0:01:23.9]} 18.
Ba3 {[%clk 0:01:34]} 18... a6 {[%clk 0:01:22.9]} 19. Ra2 {[%clk 0:01:28.7]}
19... f5 {[%clk 0:01:13]} 20. Qe2 {[%clk 0:01:22.4]} 20... Kh8 {[%clk
0:01:10.1]} 21. g3 {[%clk 0:01:17.9]} 21... Qf6 {[%clk 0:01:02.2]} 22. Rc2
{[%clk 0:01:13]} 22... Rg8 {[%clk 0:00:58.9]} 23. Na4 {[%clk 0:01:09.8]} 23...
Rac8 {[%clk 0:00:58.2]} 24. Bb2 {[%clk 0:01:02.8]} 24... Rge8 {[%clk 0:00:51.4]}
25. Nc5 {[%clk 0:00:56.8]} 25... Nf8 {[%clk 0:00:43.1]} 26. Re1 {[%clk
0:00:53.1]} 26... Bg7 {[%clk 0:00:42.4]} 27. Bg2 {[%clk 0:00:50.9]} 27... Nf7
{[%clk 0:00:42.6]} 28. Nxb7 {[%clk 0:00:49.3]} 28... f4 {[%clk 0:00:39.9]} 29.
Rc6 {[%clk 0:00:48]} 29... Qe7 {[%clk 0:00:38.2]} 30. Nc5 {[%clk 0:00:42.7]}
30... Rb8 {[%clk 0:00:34.4]} 31. Qc2 {[%clk 0:00:35.7]} 31... Ng5 {[%clk
0:00:33.6]} 32. f3 {[%clk 0:00:33.3]} 32... h5 {[%clk 0:00:31.9]} 33. Nxa6
{[%clk 0:00:32]} 33... Ra8 {[%clk 0:00:27]} 34. Nxc7 {[%clk 0:00:30.6]} 34...
Rxa5 {[%clk 0:00:24]} 35. Nxe8 {[%clk 0:00:30]} 35... Qxe8 {[%clk 0:00:24.9]}
36. Rc8 {[%clk 0:00:28.3]} 36... Qb5 {[%clk 0:00:22.2]} 37. gxf4 {[%clk
0:00:27.2]} 37... Qb6+ {[%clk 0:00:19.4]} 38. Kh1 {[%clk 0:00:24.5]} 38... Nf7
{[%clk 0:00:16.4]} 39. fxe5 {[%clk 0:00:23.2]} 39... Ra2 {[%clk 0:00:16.9]} 40.
e6 {[%clk 0:00:22]} 40... Rxb2 {[%clk 0:00:17]} 41. Rxf8+ {[%clk 0:00:21.4]}
41... Kh7 {[%clk 0:00:17.4]} 42. Qxb2 {[%clk 0:00:16.8]} 42... Bxb2 {[%clk
0:00:16.2]} 43. Rxf7+ {[%clk 0:00:16.5]} 43... Kg8 {[%clk 0:00:09.6]} 44. Rd7
{[%clk 0:00:16.1]} 44... Qf2 {[%clk 0:00:06.5]} 45. Rf1 {[%clk 0:00:15]} 45...
Qh4 {[%clk 0:00:03.2]} 46. e7 {[%clk 0:00:14.6]} 46... Kf7 {[%clk 0:00:03.8]}
47. f4 {[%clk 0:00:11.1]} 47... Ke8 {[%clk 0:00:03.6]} 48. Rb7 {[%clk
0:00:09.6]} 48... Ba3 {[%clk 0:00:03.2]} 49. d6 {[%clk 0:00:06.4]} 49... Bxd6
{[%clk 0:00:03.3]} 50. e5 {[%clk 0:00:05.3]} 50... Bxe7 {[%clk 0:00:03.8]} 51.
Bc6+ {[%clk 0:00:04.7]} 51... Kf8 {[%clk 0:00:04.3]} 0-1

[Event "*** SCC Grand Prix: Titled Tuesday Blitz"]
[Site "Chess.com"]
[Date "2020.08.25"]
[Round "4"]
[White "GukeshDommaraju"]
[Black "BillieKimbah"]
[Result "0-1"]
[WhiteElo "2710"]
[BlackElo "2881"]
[TimeControl "180+1"]
[EndTime "10:41:48 PDT"]
[Termination "BillieKimbah won by resignation"]

1. e4 {[%clk 0:03:00.9]} 1... d5 {[%clk 0:02:59.6]} 2. exd5 {[%clk 0:02:59.8]}
2... Nf6 {[%clk 0:02:59.8]} 3. d4 {[%clk 0:02:59.6]} 3... Bg4 {[%clk 0:02:58.1]}
4. f3 {[%clk 0:02:56.7]} 4... Bf5 {[%clk 0:02:55.9]} 5. Bb5+ {[%clk 0:02:50.8]}
5... Nbd7 {[%clk 0:02:22.4]} 6. c4 {[%clk 0:02:47.3]} 6... a6 {[%clk 0:01:59]}
7. Ba4 {[%clk 0:02:47]} 7... b5 {[%clk 0:01:59.1]} 8. cxb5 {[%clk 0:02:46.9]}
8... axb5 {[%clk 0:02:00]} 9. Bxb5 {[%clk 0:02:46.6]} 9... Nxd5 {[%clk
0:02:00.6]} 10. Ne2 {[%clk 0:02:39.1]} 10... Nb4 {[%clk 0:01:49.1]} 11. O-O
{[%clk 0:01:42.1]} 11... e6 {[%clk 0:01:16]} 12. Ng3 {[%clk 0:01:27.1]} 12...
Bg6 {[%clk 0:01:09.7]} 13. a3 {[%clk 0:01:25.3]} 13... Bd6 {[%clk 0:01:08]} 14.
Nc3 {[%clk 0:01:21.2]} 14... O-O {[%clk 0:01:02.2]} 15. Nge4 {[%clk 0:01:21.3]}
15... Be7 {[%clk 0:00:56.6]} 16. Bf4 {[%clk 0:01:13.7]} 16... c6 {[%clk
0:00:51.8]} 17. Be2 {[%clk 0:00:47]} 17... Nd5 {[%clk 0:00:51.6]} 18. Bd2 {[%clk
0:00:38]} 18... Qb6 {[%clk 0:00:49.5]} 19. Kh1 {[%clk 0:00:29.8]} 19... Qxb2
{[%clk 0:00:48.6]} 20. Ra2 {[%clk 0:00:16.7]} 20... Qb6 {[%clk 0:00:48]} 21. Bc1
{[%clk 0:00:08.5]} 21... Rfb8 {[%clk 0:00:45.1]} 22. a4 {[%clk 0:00:07]} 22...
Bb4 {[%clk 0:00:39.1]} 23. Nxd5 {[%clk 0:00:05.9]} 23... cxd5 {[%clk 0:00:39.2]}
24. Nf2 {[%clk 0:00:05.5]} 24... Bc3 {[%clk 0:00:38.5]} 25. Be3 {[%clk
0:00:05.8]} 25... e5 {[%clk 0:00:35]} 26. Bb5 {[%clk 0:00:05.7]} 26... exd4
{[%clk 0:00:32.9]} 27. Bf4 {[%clk 0:00:05.3]} 27... Rd8 {[%clk 0:00:31.5]} 28.
Nd3 {[%clk 0:00:05.1]} 28... Nf8 {[%clk 0:00:27.9]} 29. Re2 {[%clk 0:00:04.3]}
29... Ne6 {[%clk 0:00:27.9]} 30. Bc1 {[%clk 0:00:04.1]} 30... Nc7 {[%clk
0:00:27.1]} 31. Ne5 {[%clk 0:00:02.3]} 31... Nxb5 {[%clk 0:00:26.1]} 32. axb5
{[%clk 0:00:03.2]} 32... Qxb5 {[%clk 0:00:25.6]} 33. f4 {[%clk 0:00:02.3]} 33...
d3 {[%clk 0:00:22.2]} 34. Ref2 {[%clk 0:00:02.7]} 34... Be4 {[%clk 0:00:19.7]}
35. Qg4 {[%clk 0:00:02.3]} 35... d2 {[%clk 0:00:17.1]} 36. Bxd2 {[%clk
0:00:02.8]} 36... Bxd2 {[%clk 0:00:17.6]} 37. f5 {[%clk 0:00:03.7]} 37... Bh6
{[%clk 0:00:16.6]} 38. f6 {[%clk 0:00:03.9]} 38... g6 {[%clk 0:00:13.7]} 39. Qh4
{[%clk 0:00:03.8]} 39... Be3 {[%clk 0:00:10.2]} 40. Ng4 {[%clk 0:00:02.6]} 40...
Bxf2 {[%clk 0:00:08.1]} 41. Qxf2 {[%clk 0:00:02.9]} 41... Rab8 {[%clk
0:00:06.6]} 42. Nh6+ {[%clk 0:00:03.2]} 42... Kf8 {[%clk 0:00:06.2]} 43. Rg1
{[%clk 0:00:04.1]} 43... Qb6 {[%clk 0:00:06.2]} 44. Qf4 {[%clk 0:00:04.3]} 44...
Qd6 {[%clk 0:00:06.2]} 45. Qg5 {[%clk 0:00:04]} 45... Qe6 {[%clk 0:00:06]} 46.
Ng4 {[%clk 0:00:03.8]} 46... h5 {[%clk 0:00:05.6]} 47. Qh6+ {[%clk 0:00:03.8]}
47... Ke8 {[%clk 0:00:06.3]} 48. Ne3 {[%clk 0:00:03.7]} 48... Kd7 {[%clk
0:00:06.5]} 49. Rf1 {[%clk 0:00:04]} 49... Rb7 {[%clk 0:00:06.8]} 50. Qf4 {[%clk
0:00:04.3]} 50... Rdb8 {[%clk 0:00:07]} 51. Nc4 {[%clk 0:00:04.3]} 51... dxc4
{[%clk 0:00:06.5]} 52. Rd1+ {[%clk 0:00:04.7]} 52... Ke8 {[%clk 0:00:06.9]} 53.
h3 {[%clk 0:00:04.7]} 53... Rb1 {[%clk 0:00:07]} 54. Rxb1 {[%clk 0:00:04.5]}
54... Rxb1+ {[%clk 0:00:07.9]} 55. Kh2 {[%clk 0:00:05.4]} 55... Rb5 {[%clk
0:00:08.3]} 56. Qc7 {[%clk 0:00:05.6]} 56... Qe5+ {[%clk 0:00:08.6]} 0-1

[Event "*** SCC Grand Prix: Titled Tuesday Blitz"]
[Site "Chess.com"]
[Date "2020.08.25"]
[Round "4"]
[White "Dannyyi"]
[Black "NiranjanNavalgund"]
[Result "1-0"]
[WhiteElo "2354"]
[BlackElo "2431"]
[TimeControl "180+1"]
[EndTime "10:41:54 PDT"]
[Termination "Dannyyi won by checkmate"]

1. e4 {[%clk 0:03:00.9]} 1... c5 {[%clk 0:02:47]} 2. a3 {[%clk 0:03:00.4]} 2...
b6 {[%clk 0:02:46.5]} 3. b4 {[%clk 0:02:59.6]} 3... Bb7 {[%clk 0:02:47.4]} 4.
Nc3 {[%clk 0:02:54.4]} 4... e6 {[%clk 0:02:47.3]} 5. bxc5 {[%clk 0:02:51.9]}
5... bxc5 {[%clk 0:02:47]} 6. Rb1 {[%clk 0:02:51.1]} 6... Bc6 {[%clk 0:02:46.8]}
7. Nf3 {[%clk 0:02:49]} 7... d6 {[%clk 0:02:45.5]} 8. Be2 {[%clk 0:02:46.6]}
8... Nf6 {[%clk 0:02:45.4]} 9. d3 {[%clk 0:02:45.5]} 9... g6 {[%clk 0:02:44]}
10. O-O {[%clk 0:02:45.1]} 10... Bg7 {[%clk 0:02:43.4]} 11. Bb2 {[%clk
0:02:43.3]} 11... O-O {[%clk 0:02:38.2]} 12. Re1 {[%clk 0:02:39.2]} 12... Nbd7
{[%clk 0:02:38.3]} 13. Bf1 {[%clk 0:02:35.6]} 13... Rb8 {[%clk 0:02:38.7]} 14.
Ba1 {[%clk 0:02:32.8]} 14... Qa5 {[%clk 0:02:36.8]} 15. Rxb8 {[%clk 0:02:15.5]}
15... Rxb8 {[%clk 0:02:35.9]} 16. Qc1 {[%clk 0:02:16.4]} 16... Ng4 {[%clk
0:02:35.2]} 17. Ne2 {[%clk 0:02:10.4]} 17... Nge5 {[%clk 0:02:33.7]} 18. Nxe5
{[%clk 0:02:06.4]} 18... Nxe5 {[%clk 0:02:34]} 19. Bc3 {[%clk 0:01:50.2]} 19...
Qa6 {[%clk 0:02:30.9]} 20. Qa1 {[%clk 0:01:40.9]} 20... Bf8 {[%clk 0:02:20.9]}
21. Bxe5 {[%clk 0:01:27.2]} 21... dxe5 {[%clk 0:02:21.8]} 22. Qxe5 {[%clk
0:01:28.1]} 22... Rd8 {[%clk 0:02:21.7]} 23. Nf4 {[%clk 0:01:21.8]} 23... Qa5
{[%clk 0:02:19.3]} 24. Rb1 {[%clk 0:01:11.5]} 24... Qd2 {[%clk 0:02:13.2]} 25.
Qc7 {[%clk 0:00:53.7]} 25... Rd4 {[%clk 0:01:14.9]} 26. Ne2 {[%clk 0:00:35]}
26... Qxc2 {[%clk 0:00:59.5]} 27. Nxd4 {[%clk 0:00:30.5]} 27... cxd4 {[%clk
0:00:57.8]} 28. Rb8 {[%clk 0:00:27.9]} 28... Qa4 {[%clk 0:00:46.3]} 29. Qc8
{[%clk 0:00:20.3]} 29... Qxa3 {[%clk 0:00:45.9]} 30. Qxc6 {[%clk 0:00:18.8]}
30... Kg7 {[%clk 0:00:46.4]} 31. Qa8 {[%clk 0:00:18.1]} 31... Bc5 {[%clk
0:00:45.4]} 32. Rg8+ {[%clk 0:00:17.6]} 32... Kh6 {[%clk 0:00:45.9]} 33. Qb7
{[%clk 0:00:15.2]} 33... Be7 {[%clk 0:00:38.2]} 34. Re8 {[%clk 0:00:14.4]} 34...
Bh4 {[%clk 0:00:36.4]} 35. Qxf7 {[%clk 0:00:13.8]} 35... Qb2 {[%clk 0:00:36.5]}
36. Qf8+ {[%clk 0:00:14]} 36... Kh5 {[%clk 0:00:37]} 37. Qf3+ {[%clk 0:00:13.4]}
37... Kh6 {[%clk 0:00:37.1]} 38. Rxe6 {[%clk 0:00:13.7]} 38... Qd2 {[%clk
0:00:34.9]} 39. g3 {[%clk 0:00:14.1]} 39... Bg5 {[%clk 0:00:34.7]} 40. Re8
{[%clk 0:00:14]} 40... Qc1 {[%clk 0:00:32.5]} 41. Qf8+ {[%clk 0:00:13.1]} 41...
Kh5 {[%clk 0:00:33]} 42. Kg2 {[%clk 0:00:13.2]} 42... Qd2 {[%clk 0:00:24.8]} 43.
Qf3+ {[%clk 0:00:12.1]} 43... Kh6 {[%clk 0:00:25]} 44. Qf8+ {[%clk 0:00:11.9]}
44... Kh5 {[%clk 0:00:25.4]} 45. h4 {[%clk 0:00:10.2]} 45... Be3 {[%clk
0:00:23.5]} 46. g4+ {[%clk 0:00:10.2]} 46... Kxh4 {[%clk 0:00:22.7]} 47. Qf6+
{[%clk 0:00:09.8]} 47... Bg5 {[%clk 0:00:22]} 48. Qf3 {[%clk 0:00:08.1]} 48...
Be3 {[%clk 0:00:19.8]} 49. Qh3+ {[%clk 0:00:06.9]} 49... Kg5 {[%clk 0:00:19.8]}
50. Rf8 {[%clk 0:00:05.9]} 50... Bf4 {[%clk 0:00:18.4]} 51. Qf3 {[%clk
0:00:05.4]} 51... h6 {[%clk 0:00:17.6]} 52. Be2 {[%clk 0:00:04]} 52... a5 {[%clk
0:00:17.1]} 53. e5 {[%clk 0:00:03.8]} 53... a4 {[%clk 0:00:16.4]} 54. e6 {[%clk
0:00:04.2]} 54... h5 {[%clk 0:00:15.2]} 55. gxh5 {[%clk 0:00:03]} 55... a3
{[%clk 0:00:14.8]} 56. Rg8 {[%clk 0:00:03]} 56... Kh4 {[%clk 0:00:14.4]} 57.
Rxg6 {[%clk 0:00:03]} 57... Bg5 {[%clk 0:00:14.7]} 58. Qg4# {[%clk 0:00:02.8]}
1-0